Cogmind - Beta 16 @@@ ROGUE MODE // 2025.12.02 @ 22:00:26 Player: Lazz Result: Destroyed by G-67 Veteran with Field Laser Performance ------------- Evolutions (4) 2000 Regions Visited (15) 3000 Robots Destroyed (113) 565 Value Destroyed (4082) 4082 Prototype IDs (43) 860 Alien Tech Used (0) 0 Bonus (1093) 1093 TOTAL SCORE: 11600 Bonus ------- Follower Combat Kills 493 Aligned with FarCom 300 Met Data Miner 300 Cogmind --------- Core Integrity 0/850 Matter 267/300 Energy 13/100 System Corruption 2% Temperature Cool (9) Movement Treading (240) Ox1 Location -5/Proximity Caves Parts ------- > --- POWER (1) -------- (None) > --- PROPULSION (4) --- Improved Medium Treads Improved Medium Treads > --- UTILITY (6) ------ Huge Storage Unit > --- WEAPON (4) ------- Powered Hammer Makeshift Hammer > --- INVENTORY (25) --- Energy Well (350) Hacking Suite Hacking Suite Authchip [Weapon] Particle Gun Peak State ------------ > --- POWER ------------ Neutrino Core > --- PROPULSION ------- Improved Medium Treads Improved Medium Treads Armored Huge Wheel > --- UTILITY ---------- Improved Heat Sink Advanced Heat Sink Huge Storage Unit Advanced Sensor Array Heavy Armor Plating > --- WEAPON ----------- Beamcaster Gauss Rifle Gauss Rifle Proton Missile Launcher > --- INVENTORY -------- Light Angular Momentum Engine Advanced Treads Improved Medium Treads Improved Medium Treads Compact Wheel Armored Huge Wheel Hacking Suite Hacking Suite Authchip [Weapon] Drone Bay Drone Bay Particle Gun Railgun Heavy Assault Cannon Powered Hammer Makeshift Hammer [Rating: 68] Favorites ----------- Power Improved Deuterium Engine Engine Improved Deuterium Engine Power Core Light Nuclear Core Propulsion Potential Leg Treads Improved Medium Treads Leg Potential Leg Wheel Armored Huge Wheel Utility Huge Storage Unit Device Improved Heat Sink Storage Huge Storage Unit Processor Machine Analyzer Hackware Hacking Suite Protection Improved Propulsion Shielding Weapon Flak Cannon Energy Gun Improved Spread Laser Energy Cannon Proton Cannon Ballistic Gun Gauss Rifle Ballistic Cannon Flak Cannon Launcher Proton Missile Launcher Impact Weapon Powered Hammer Build | -11 -10 -9 -9 -9 -8 -8 -8 -7 -7 -7 -6 -6 -6 -6 -5 ------- Run | Yrd Mat Mat Min Exi Min Mat Sto Fac Low Low Fac Low Low Dat Pro Slots Evolved 8 | . . 2 . . . 2 . 2 . . 2 . . . . Power . | . . . . . . . . . . . . . . . . Propulsion 2 | . . . . . . . . 2 . . . . . . . Utility 4 | . . 1 . . . 2 . . . . 1 . . . . Weapon 2 | . . 1 . . . . . . . . 1 . . . . Parts Attached 96 | 7 10 2 . 2 1 8 7 10 6 1 12 6 8 2 14 Power 11 | 1 1 . . . . 1 1 2 1 1 1 . 1 . 1 Engine 8 | 1 1 . . . . 1 1 1 . 1 1 . . . 1 Core 3 | . . . . . . . . 1 1 . . . 1 . . Reactor . | . . . . . . . . . . . . . . . . Propulsion 19 | 2 4 . . 2 . . . 2 . . 3 . 2 1 3 Treads 8 | . 2 . . . . . . . . . 2 . 2 . 2 Leg 4 | . . . . 2 . . . 2 . . . . . . . Wheel 7 | 2 2 . . . . . . . . . 1 . . 1 1 Hover . | . . . . . . . . . . . . . . . . Flight . | . . . . . . . . . . . . . . . . Utility 35 | 2 2 1 . . . 4 2 5 3 . 5 5 1 1 4 Device 18 | 1 . . . . . 3 . 1 1 . 3 4 1 1 3 Storage 4 | 1 1 1 . . . . . . . . 1 . . . . Processor 2 | . . . . . . . 1 . . . . 1 . . . Hackware 3 | . . . . . . . . 2 . . 1 . . . . Protection 8 | . 1 . . . . 1 1 2 2 . . . . . 1 Artifact . | . . . . . . . . . . . . . . . . Weapon 31 | 2 3 1 . . 1 3 4 1 2 . 3 1 4 . 6 Energy Gun 7 | . 1 1 . . 1 . 1 1 . . 1 . 1 . . Energy Cannon 1 | . . . . . . . . . . . . . 1 . . Ballistic Gun 14 | 2 2 . . . . 3 . . 2 . 1 . 1 . 3 Ballistic Cannon 5 | . . . . . . . 2 . . . 1 1 . . 1 Launcher 2 | . . . . . . . 1 . . . . . . . 1 Special Weapon . | . . . . . . . . . . . . . . . . Impact Weapon 2 | . . . . . . . . . . . . . 1 . 1 Slashing Weapon . | . . . . . . . . . . . . . . . . Piercing Weapon . | . . . . . . . . . . . . . . . . Special Melee Weapon . | . . . . . . . . . . . . . . . . Unidentified Prototypes 3 | . . 1 . . . 1 1 . . . . . . . . Parts Lost 69 | . 5 1 . . 1 6 2 7 8 . 1 6 10 . 22 Power 10 | . 1 . . . . 1 1 2 2 . . . 1 . 2 Propulsion 11 | . 1 1 . . . . . . 1 . . . 1 . 7 Utility 23 | . . . . . . 2 1 3 3 . . 5 4 . 5 Weapon 25 | . 3 . . . 1 3 . 2 2 . 1 1 4 . 8 Highest Loss Streak 15 | . 3 1 . . 1 5 2 1 5 . 1 3 6 . 15 To Critical Strikes . | . . . . . . . . . . . . . . . . Average Backups 17 | 2 7 10 13 13 14 13 16 21 18 20 21 22 18 17 14 Power . | . . . . . . . . 1 . 1 1 1 1 1 . Propulsion 3 | 1 3 2 1 1 3 3 3 3 3 4 5 6 5 5 4 Utility 6 | . 3 5 5 5 5 4 5 9 8 7 8 7 6 6 5 Weapon 6 | . . 2 6 7 6 5 8 7 6 7 7 6 5 5 4 Tool/Special . | . . . . . . . . . . . . . . . . Unused Backups 15 | . . 1 . . . . 8 . . . 1 . . . 5 Power . | . . . . . . . . . . . . . . . . Propulsion 1 | . . . . . . . . . . . 1 . . . . Utility 4 | . . . . . . . . . . . . . . . 4 Weapon 10 | . . 1 . . . . 8 . . . . . . . 1 Tool/Special . | . . . . . . . . . . . . . . . . Average Slot Usage (%) 88 | . 89 73 100 100 99 73 96 84 97 88 91 92 77 66 69 Engine 5 | . 8 11 11 11 11 3 8 4 . 4 6 6 2 . 1 Core 1 | . . . . . . . . 1 6 . . . 2 6 4 Treads 4 | . 1 . 11 10 . . . . . . 7 13 11 6 7 Leg 10 | . . . . 1 22 18 18 23 28 23 . . . . . Wheel 5 | . 25 14 11 10 . . . . . . 11 6 7 13 10 Device 12 | . 6 . 11 11 11 15 23 8 4 7 17 19 13 13 16 Storage 7 | . 14 11 11 11 11 9 9 7 7 7 6 6 6 6 6 Processor 4 | . . . . . . . 2 7 7 7 6 6 6 . . Hackware 1 | . . . . . . . . 6 1 . . . . . . Protection 6 | . 7 11 11 11 11 4 7 1 16 15 7 5 . . 3 Energy Gun 8 | . 4 13 22 22 21 4 7 1 7 7 11 13 8 6 3 Ballistic Gun 9 | . 20 11 11 11 11 18 14 4 13 15 11 1 3 6 8 Ballistic Cannon 4 | . . . . . . . 4 13 1 . 1 11 8 . . Peak Build Rating 68 | 7 8 13 13 32 34 42 49 58 62 53 67 67 65 55 68 Average Rating 45 | 4 7 8 13 15 32 35 43 49 58 51 61 64 56 50 53 On Entrance 36 | . 7 8 13 13 32 33 42 44 58 48 53 66 63 50 55 Avg Prop Armor Cover (%) 9 | . . 11 11 11 . . . 6 . . 7 10 12 8 4 Naked Turns . | . . . . . . . . . . . . . . . . Heaviest Build 136 | 12 17 91 91 91 92 95 103 103 119 122 128 136 119 119 134 Greatest Support 90 | 26 32 20 10 60 60 60 60 84 84 54 38 28 38 38 90 Greatest Overweight (x) 9 | . 1 9 9 9 1 1 1 1 2 2 4 4 4 3 4 Average Overweight (x) 2 | . . 2 9 8 1 1 1 1 1 2 2 3 3 2 2 Largest Inventory Capacity 25 | 8 10 25 25 25 25 25 25 25 25 25 25 25 25 25 25 Average Capacity 23 | 7 8 16 25 25 25 25 25 25 25 25 25 25 25 25 25 Most Carried 25 | 5 10 16 14 15 15 15 25 25 24 23 25 25 23 19 21 Average Carried 18 | 2 7 10 13 13 14 13 16 21 20 22 23 24 20 18 16 Final Capacity 25 | 8 10 25 25 25 25 25 25 25 25 25 25 25 25 25 25 Final Carried 25 | 5 9 13 13 15 14 14 19 25 21 23 25 23 19 18 5 Class Distribution -------------------- 28% | Skirmisher 19% | Tank 16% | Mutant 13% | Gunner 8% | Commander-Skirmisher 6% | Scavenger-Skirmisher 5% | Scavenger-Tank Dominant Class ---------------- Mutant | -10/Materials Mutant | -9/Materials Tank | -9/Mines Tank | -9/Exiles Skirmisher | -8/Mines Skirmisher | -8/Materials Skirmisher | -8/Storage Commander-Skirmisher | -7/Factory Tank | -7/Lower Caves Tank | -7/Lower Caves Skirmisher | -6/Factory Gunner | -6/Lower Caves Scavenger-Skirmisher | -6/Lower Caves Scavenger-Skirmisher | -6/Data Miner Scavenger-Tank | -5/Proximity Caves Resources | -11 -10 -9 -9 -9 -8 -8 -8 -7 -7 -7 -6 -6 -6 -6 -5 ----------- Run | Yrd Mat Mat Min Exi Min Mat Sto Fac Low Low Fac Low Low Dat Pro Matter Collected 2977 | 287 228 2 44 . 28 182 343 503 239 8 218 403 209 . 283 Remotely 776 | . . . . . . 52 343 381 . . . . . . . Salvage Created 4559 | 92 492 69 97 . 55 586 656 347 448 . 376 541 244 . 556 Parts 236 | 7 29 4 5 . 4 29 52 12 28 . 22 17 8 . 19 Haulers Intercepted 5 | . 2 . . . . . 3 . . . . . . . . Recyclers Shooed 4 | 1 2 . . . . . 1 . . . . . . . . Parts Field Recycled . | . . . . . . . . . . . . . . . . Retrieved Matter . | . . . . . . . . . . . . . . . . Parts Self-Destructed 65 | . . . . . . . . . 27 . . 12 9 . 17 Prevented 3 | . . . . . . . . . . . . . . . 3 Parts Restored . | . . . . . . . . . . . . . . . . Kills | -11 -10 -9 -9 -9 -8 -8 -8 -7 -7 -7 -6 -6 -6 -6 -5 ------- Run | Yrd Mat Mat Min Exi Min Mat Sto Fac Low Low Fac Low Low Dat Pro Combat Hostiles Destroyed 95 | . 12 1 2 . 3 10 9 9 12 . 7 14 8 . 8 Melee 1 | . . . . . . . . . . . . . . . 1 Guns 63 | . 12 1 2 . 2 10 5 . 12 . 6 5 4 . 4 Cannons 26 | . . . . . . . 2 9 . . . 9 4 . 2 AOE 5 | . . . . . 1 . 2 . . . 1 . . . 1 Classes Destroyed 16 | 2 3 1 . . . 2 2 3 1 . . 1 . . 1 Worker 2 | . . 1 . . . . . 1 . . . . . . . Builder 5 | . . . . . . 2 3 . . . . . . . . Tunneler 1 | 1 . . . . . . . . . . . . . . . Hauler 5 | . 2 . . . . . 3 . . . . . . . . Recycler 2 | 1 . . . . . . 1 . . . . . . . . Operator 1 | . . . . . . . . 1 . . . . . . . Watcher 2 | . . . . . . . 2 . . . . . . . . Swarmer 28 | . 4 . . . 3 . 3 . 6 . . 4 6 . 2 Grunt 35 | . 8 1 2 . . 8 . 4 2 . 3 4 1 . 2 Duelist 2 | . . . . . . . . . . . . . . . 2 Sentry 15 | . . . . . . 2 5 3 2 . 1 . 1 . 1 Hunter 4 | . . . . . . . 1 . . . 2 . . . 1 Programmer 5 | . . . . . . . . 1 2 . 1 1 . . . Heavy 1 | . . . . . . . . 1 . . . . . . . Packrat 1 | . . . . . . . . . . . . . . . 1 Samaritan 1 | . . . . . . . . . 1 . . . . . . Thug 4 | . . . . . . . . . . . . 4 . . . Mutant 1 | . . . . . . . . . . . . 1 . . . Best Kill Streak 7 | 2 5 2 2 . 3 7 5 3 5 . 3 4 4 . 2 Combat Bots Only 6 | . 5 1 2 . 3 6 3 3 5 . 3 4 4 . 2 Max Kills in Single Turn 2 | 1 1 1 1 . 1 1 2 1 2 . 1 1 1 . 1 Gunslinging 1 | . . . . . . . . . 1 . . . . . . Exploded 2 | . . . . . 1 . 2 . . . 1 . . . 1 Melee 1 | . . . . . . . . . . . . . . . 1 Uniques/NPCs Destroyed . | . . . . . . . . . . . . . . . . Combat | -11 -10 -9 -9 -9 -8 -8 -8 -7 -7 -7 -6 -6 -6 -6 -5 -------- Run | Yrd Mat Mat Min Exi Min Mat Sto Fac Low Low Fac Low Low Dat Pro Hostile Shots Fired 968 | . 89 5 7 . 7 87 37 133 113 . 32 72 143 . 243 Missed 287 | . 20 . . . 1 26 9 42 28 . 12 25 56 . 68 Hits 681 | . 69 5 7 . 6 61 28 91 85 . 20 47 87 . 175 Projectile 681 | . 69 5 7 . 6 61 28 91 85 . 20 47 87 . 175 Critical Strikes 20 | . . . . . . 4 1 1 4 . 1 2 . . 7 Actively Blocked 4 | . . . . . . 1 . . 1 . 1 1 . . . Part Disruptions 1 | . . . . . . . . 1 . . . . . . . Damage Taken 9949 | . 693 57 104 . 54 948 479 1050 1088 . 356 774 1152 . 3194 Core 1634 | . 141 9 27 . 8 216 51 174 153 . . 71 186 . 598 Absorbed by Shields . | . . . . . . . . . . . . . . . . Redirected to Shielding 255 | . 14 2 5 . 1 28 . . 94 . 89 22 . . . Ignored by Resistances 165 | . . . . . . . . . 126 . . 39 . . . Regen/Repaired (Parts) 121 | . . . . . . . 27 . . . 94 . . . . Core Remaining (%) 67 | 100 43 . . . 89 . 51 . . 53 . . . . . Volleys Fired 281 | 5 57 9 4 . 3 36 34 33 26 . 14 26 14 . 20 Largest 4 | 2 2 2 3 . 2 3 3 3 3 . 4 4 4 . 4 Hottest 217 | 40 70 70 115 . 65 110 105 97 137 . 160 169 215 . 217 Shots Fired 742 | 10 99 18 12 . 6 84 88 87 74 . 52 104 49 . 59 Gun 579 | 10 99 18 12 . 6 84 70 23 73 . 48 59 30 . 47 Cannon 158 | . . . . . . . 15 64 1 . 4 45 19 . 10 Launcher 5 | . . . . . . . 3 . . . . . . . 2 Special . | . . . . . . . . . . . . . . . . Kinetic 520 | 10 86 9 4 . 3 64 66 87 48 . 28 52 28 . 35 Thermal 161 | . 13 9 4 . . . . . 26 . 24 52 17 . 16 Explosive . | . . . . . . . . . . . . . . . . Electromagnetic 61 | . . . 4 . 3 20 22 . . . . . 4 . 8 Robot Hit Streak 16 | 2 12 4 4 . 4 11 9 8 9 . 8 10 4 . 16 Robot Miss Streak 16 | 1 5 2 2 . 2 3 5 8 7 . 4 16 5 . 7 Penetration Max 1 | . . . . . . . . . 1 . 1 1 . . . Secondary Targets 13 | . 2 . . . 2 5 1 . 3 . . . . . . Max Gunslinging Chain 2 | . 1 . . . 1 1 1 . 2 . . . . . . Shots Hit Robots 490 | 5 64 9 7 . 5 65 53 61 52 . 35 72 24 . 38 Core Hits 342 | 2 27 4 5 . 3 32 40 42 46 . 30 74 17 . 20 Critical Kills 2 | . . . . . . . . . 1 . . . . . 1 Critical Parts Destroyed 2 | . . . . . . . . . . . 2 . . . . Critical Strikes 8 | . . . . . . . . 2 1 . 3 1 . . 1 Burn 2 | . . . . . . . . . . . 1 1 . . . Destroy 3 | . . . . . . . . . 1 . 2 . . . . Blast 2 | . . . . . . . . 2 . . . . . . . Smash 1 | . . . . . . . . . . . . . . . 1 Melee Attacks 9 | . . . . . . . . . . . . . 3 . 6 Impact 9 | . . . . . . . . . . . . . 3 . 6 Slashing . | . . . . . . . . . . . . . . . . Piercing . | . . . . . . . . . . . . . . . . Sneak Attacks . | . . . . . . . . . . . . . . . . Combat Hostiles . | . . . . . . . . . . . . . . . . Follow-up Attacks 1 | . . . . . . . . . . . . . . . 1 Damage Inflicted 9170 | 50 662 112 112 . 87 941 1061 1199 1101 . 751 1517 473 . 1104 Guns 6008 | 50 662 112 112 . 45 818 609 228 1079 . 627 822 223 . 621 Cannons 2363 | . . . . . . . 162 971 22 . 50 695 250 . 213 Explosions 665 | . . . . . 42 123 290 . . . 74 . . . 136 Melee 134 | . . . . . . . . . . . . . . . 134 Ramming . | . . . . . . . . . . . . . . . . Kinetic 5331 | 50 614 25 8 . 15 482 550 1199 492 . 365 835 203 . 493 Thermal 2581 | . 48 87 25 . 42 123 240 . 609 . 312 682 162 . 251 Explosive . | . . . . . . . . . . . . . . . . Electromagnetic 1124 | . . . 79 . 30 336 271 . . . 74 . 108 . 226 Impact 134 | . . . . . . . . . . . . . . . 134 Slashing . | . . . . . . . . . . . . . . . . Piercing . | . . . . . . . . . . . . . . . . Highest Corruption 7 | . . . . . . . 1 2 6 7 . 2 2 2 2 Average Corruption 2 | . . . . . . . 1 1 5 7 . 1 2 2 2 Corruption Purged . | . . . . . . . . . . . . . . . . Corruption Blocked . | . . . . . . . . . . . . . . . . Effects 59 | . . . . . . . 1 5 20 6 . 11 7 1 8 Message Errors 12 | . . . . . . . . 1 . 4 . 3 1 . 3 Matter Fused 14 | . . . . . . . . 1 7 . . 3 1 . 2 Heat Flow Errors 10 | . . . . . . . 1 1 3 2 . 1 . 1 1 Energy Discharges 5 | . . . . . . . . . 3 . . 1 . . 1 Parts Fused 2 | . . . . . . . . 1 1 . . . . . . Data Loss (minor) 8 | . . . . . . . . 1 3 . . 1 3 . . Data Loss (major) 2 | . . . . . . . . . 1 . . 1 . . . Misfires 3 | . . . . . . . . . 1 . . 1 1 . . Alerts 2 | . . . . . . . . . 1 . . . 1 . . Weapon Failures 1 | . . . . . . . . . . . . . . . 1 Overload Shots . | . . . . . . . . . . . . . . . . Overflow Damage . | . . . . . . . . . . . . . . . . Projectiles . | . . . . . . . . . . . . . . . . Explosions . | . . . . . . . . . . . . . . . . Melee . | . . . . . . . . . . . . . . . . Knockbacks 43 | . . . . . . . 1 12 . . 4 21 3 . 2 Impact 1 | . . . . . . . . . . . . . . . 1 Kinetic 37 | . . . . . . . 1 12 . . 3 17 3 . 1 Secondary 5 | . . . . . . . . . . . 1 4 . . . Self-Inflicted Damage 149 | . . . . . . 30 91 . . . 28 . . . . Shots 6 | . . . . . . 1 4 . . . 1 . . . . Rammed 1 | . . 1 . . . . . . . . . . . . . Targets Rammed 1 | . . 1 . . . . . . . . . . . . . Kicked . | . . . . . . . . . . . . . . . . Crushed . | . . . . . . . . . . . . . . . . Highest Temperature 469 | . 40 50 179 . 18 22 194 192 395 244 469 423 233 252 218 Average Temperature 105 | . 13 18 86 . 13 7 53 26 154 111 189 150 82 144 83 Received Heat Transfer 2632 | . 252 30 60 . . 477 90 255 183 . 51 294 171 . 769 Effects 7 | . . . . . . . . . 4 . 2 1 . . . Shutdowns 2 | . . . . . . . . . . . 1 1 . . . Interference 3 | . . . . . . . . . 3 . . . . . . Short Circuit 1 | . . . . . . . . . . . 1 . . . . Damage (minor) 1 | . . . . . . . . . 1 . . . . . . Siege Activations . | . . . . . . . . . . . . . . . . Martial Activations . | . . . . . . . . . . . . . . . . Shielding Activations . | . . . . . . . . . . . . . . . . Robots Disrupted 1 | . . . . . . 1 . . . . . . . . . Combat Hostiles 1 | . . . . . . 1 . . . . . . . . . Robots Corrupted . | . . . . . . . . . . . . . . . . Combat Hostiles . | . . . . . . . . . . . . . . . . Parts Fried 2 | . . . . . . 2 . . . . . . . . . Impact Corruptions . | . . . . . . . . . . . . . . . . Robots Melted . | . . . . . . . . . . . . . . . . Combat Hostiles . | . . . . . . . . . . . . . . . . Parts Melted 7 | . . 1 . . . . . 3 . . 1 . 1 . 1 Heat Transferred 3575 | . 148 259 74 . . 100 300 . 485 . 505 981 279 . 444 Parts Sabotaged . | . . . . . . . . . . . . . . . . Parts Stolen . | . . . . . . . . . . . . . . . . Parts Stripped . | . . . . . . . . . . . . . . . . Power Chain Reactions 7 | . . . . . 1 2 4 . . . . . . . . Alert | -11 -10 -9 -9 -9 -8 -8 -8 -7 -7 -7 -6 -6 -6 -6 -5 ------- Run | Yrd Mat Mat Min Exi Min Mat Sto Fac Low Low Fac Low Low Dat Pro Maximum Alert Level . | . . . . . . . . . . . . . . . . Low Security (%) 100 | 100 100 100 100 . 100 100 100 100 . . 100 . . . . Level 1 . | . . . . . . . . . . . . . . . . Level 2 . | . . . . . . . . . . . . . . . . Level 3 . | . . . . . . . . . . . . . . . . Level 4 . | . . . . . . . . . . . . . . . . Level 5 . | . . . . . . . . . . . . . . . . High Security . | . . . . . . . . . . . . . . . . Max Security . | . . . . . . . . . . . . . . . . Peak Influence 185 | 10 152 50 55 . 97 137 110 185 . . 130 . . . . Initial 45 | . . 45 . . . 14 5 24 . . . . . . . Average 48 | 1 90 24 15 . 67 71 46 55 . . 21 . . . . Influence Increases 3218 | 10 355 35 65 . 107 282 407 798 255 . 212 305 185 . 202 Destroy 0b10 Robot/C 2080 | . 240 20 40 . 60 200 180 400 240 . 140 240 160 . 160 Destroy 0b10 Robot/NC 95 | 10 10 5 . . . 10 45 10 5 . . . . . . Destroy Leader 424 | . 44 10 10 . 10 60 80 100 10 . 40 40 10 . 10 Allied During Kill 264 | . . . . . . . 21 216 . . . 25 . . 2 Successful Hack 98 | . . . . . . 5 35 56 . . 2 . . . . Disable Machine 75 | . . . . . 15 . 15 15 . . 30 . . . . Destroy Structure 32 | . 1 . . . 7 7 16 1 . . . . . . . Partial Spotted 45 | . . . 15 . 15 . 15 . . . . . . . . Lose Combat Pursuer 105 | . 60 . . . . . . . . . . . 15 . 30 Influence Decreases 3206 | 10 246 144 65 . 70 304 367 853 218 37 124 280 298 . 190 Entered New Map 193 | . . 64 . . . 23 10 31 . 8 . 34 23 . . Time Decay 2239 | 10 196 70 65 . 60 221 327 445 188 29 124 176 215 . 113 Lost Part 387 | . 50 10 . . 10 60 20 50 30 . . 30 60 . 67 Lost Ally 227 | . . . . . . . . 177 . . . 40 . . 10 Purge Threat 160 | . . . . . . . 10 150 . . . . . . . Squads Dispatched 27 | . 3 2 . . . 6 2 9 . . 4 . . . 1 Investigation 10 | . 1 . . . . 1 1 5 . . 2 . . . . Extermination 5 | . . . . . . . . 3 . . 2 . . . . Reinforcement 7 | . 2 2 . . . 2 . 1 . . . . . . . Assault 1 | . . . . . . . . . . . . . . . 1 Garrison 4 | . . . . . . 3 1 . . . . . . . . Intercept . | . . . . . . . . . . . . . . . . Searches Triggered . | . . . . . . . . . . . . . . . . Construction Impeded 1 | . . . . . . 1 . . . . . . . . . Haulers Reinforced . | . . . . . . . . . . . . . . . . Active Scanning Responses . | . . . . . . . . . . . . . . . . Cargo Convoy Interrupts . | . . . . . . . . . . . . . . . . Stealth | -11 -10 -9 -9 -9 -8 -8 -8 -7 -7 -7 -6 -6 -6 -6 -5 --------- Run | Yrd Mat Mat Min Exi Min Mat Sto Fac Low Low Fac Low Low Dat Pro Distress Signals 5 | . 1 . . . . 3 1 . . . . . . . . Communications Jammed . | . . . . . . . . . . . . . . . . Distress Signals . | . . . . . . . . . . . . . . . . Times Spotted 136 | . 14 3 2 . 3 11 12 22 13 . 7 18 12 . 19 Peak Tracking Total 10 | . 5 1 2 . 3 3 4 4 5 . 2 5 5 . 10 Tactical Retreats 5 | . 2 . . . . . . . . . . . 1 . 2 Traps | -11 -10 -9 -9 -9 -8 -8 -8 -7 -7 -7 -6 -6 -6 -6 -5 ------- Run | Yrd Mat Mat Min Exi Min Mat Sto Fac Low Low Fac Low Low Dat Pro Traps Triggered 4 | . 1 . . . . 1 1 . . . 1 . . . . Indirectly . | . . . . . . . . . . . . . . . . Trap Hack Attempts . | . . . . . . . . . . . . . . . . Triggered . | . . . . . . . . . . . . . . . . Disarmed . | . . . . . . . . . . . . . . . . Reprogrammed . | . . . . . . . . . . . . . . . . Reused . | . . . . . . . . . . . . . . . . Traps Extracted . | . . . . . . . . . . . . . . . . Installed . | . . . . . . . . . . . . . . . . Triggered . | . . . . . . . . . . . . . . . . Machines | -11 -10 -9 -9 -9 -8 -8 -8 -7 -7 -7 -6 -6 -6 -6 -5 ---------- Run | Yrd Mat Mat Min Exi Min Mat Sto Fac Low Low Fac Low Low Dat Pro Machines Disabled 6 | . . . . . 1 . 1 1 1 . 2 . . . . Max in Single Turn 2 | . . . . . 1 . 1 1 1 . 2 . . . . Machines Repaired . | . . . . . . . . . . . . . . . . Machines Dismantled . | . . . . . . . . . . . . . . . . Machines Sabotaged . | . . . . . . . . . . . . . . . . Overloaded Fab Kills . | . . . . . . . . . . . . . . . . Hacking | -11 -10 -9 -9 -9 -8 -8 -8 -7 -7 -7 -6 -6 -6 -6 -5 --------- Run | Yrd Mat Mat Min Exi Min Mat Sto Fac Low Low Fac Low Low Dat Pro Machines Accessed 28 | . . . . 1 . 1 10 6 2 . 4 . . 4 . Terminals 15 | . . . . . . 1 9 4 . . 1 . . . . Fabricators 3 | . . . . . . . . 2 . . 1 . . . . Repair Stations 2 | . . . . . . . 1 . . . 1 . . . . Recycling Units . | . . . . . . . . . . . . . . . . Scanalyzers 1 | . . . . . . . . . . . 1 . . . . Garrison Access . | . . . . . . . . . . . . . . . . Total Hacks 94 | . . . . 1 . 2 20 27 4 . 11 . . 29 . Successful 68 | . . . . 1 . 2 12 13 4 . 7 . . 29 . Failed 26 | . . . . . . . 8 14 . . 4 . . . . Catastrophic 4 | . . . . . . . . 4 . . . . . . . Database Lockouts . | . . . . . . . . . . . . . . . . Manual 11 | . . . . 1 . . 4 6 . . . . . . . Terminals 42 | . . . . . . 2 19 19 . . 2 . . . . Fabricators 10 | . . . . . . . . 8 . . 2 . . . . Repair Stations 4 | . . . . . . . 1 . . . 3 . . . . Recycling Units . | . . . . . . . . . . . . . . . . Scanalyzers 4 | . . . . . . . . . . . 4 . . . . Garrison Access . | . . . . . . . . . . . . . . . . Terminal Hacks 54 | . . . . 1 . 2 10 8 4 . . . . 29 . Record 14 | . . . . . . . . . 3 . . . . 11 . Part Schematic 9 | . . . . . . . . 1 . . . . . 8 . Robot Schematic 8 | . . . . . . . . 1 . . . . . 7 . Prototype ID Bank 6 | . . . . . . 1 2 . . . . . . 3 . Open Door 5 | . . . . . . . 4 . 1 . . . . . . Branch Access Points 1 | . . . . . . . . 1 . . . . . . . Alert Level 1 | . . . . . . . . 1 . . . . . . . Unreport Threat 3 | . . . . . . . 1 2 . . . . . . . Registered Prototypes 1 | . . . . . . . 1 . . . . . . . . Zone Layout 5 | . . . . . . 1 2 2 . . . . . . . Proto ID Catalog 1 | . . . . 1 . . . . . . . . . . . Fabricator Hacks 7 | . . . . . . . . 5 . . 2 . . . . Load Schematic 4 | . . . . . . . . 3 . . 1 . . . . Build 3 | . . . . . . . . 2 . . 1 . . . . Repair Station Hacks 2 | . . . . . . . . . . . 2 . . . . Scan Component 1 | . . . . . . . . . . . 1 . . . . Repair 1 | . . . . . . . . . . . 1 . . . . Recycling Unit Hacks . | . . . . . . . . . . . . . . . . Scanalyzer 3 | . . . . . . . . . . . 3 . . . . Insert Component 1 | . . . . . . . . . . . 1 . . . . Analyze 2 | . . . . . . . . . . . 2 . . . . Garrison Access Hacks . | . . . . . . . . . . . . . . . . Unauthorized Hacks 2 | . . . . . . . 2 . . . . . . . . Terminals 1 | . . . . . . . 1 . . . . . . . . Botnet 1 | . . . . . . . 1 . . . . . . . . Fabricators . | . . . . . . . . . . . . . . . . Repair Stations 1 | . . . . . . . 1 . . . . . . . . Patch 1 | . . . . . . . 1 . . . . . . . . Recycling Units . | . . . . . . . . . . . . . . . . Scanalyzers . | . . . . . . . . . . . . . . . . Garrison Access . | . . . . . . . . . . . . . . . . Data Cores Recovered 1 | . . . . . . . . 1 . . . . . . . Used 1 | . . . . . . . . 1 . . . . . . . Hacking Detections 16 | . . . . . . . 8 6 . . 2 . . . . Full Trace Events 6 | . . . . . . . . 5 . . 1 . . . . Feedback Events . | . . . . . . . . . . . . . . . . Feedback Blocked . | . . . . . . . . . . . . . . . . Robot Schematics Acquired 8 | . . . . . . . . 1 . . . . . 7 . Robots Built 6 | . . . . . . . . 6 . . . . . . . Authchips 1 | . . . . . . . . 1 . . . . . . . Time 268 | . . . . . . . . 268 . . . . . . . Total Robot Build Rating 24 | . . . . . . . . 24 . . . . . . . Part Schematics Acquired 10 | . . . . . . . . 1 . . 1 . . 8 . Parts Built 2 | . . . . . . . . . . . 2 . . . . Authchips 1 | . . . . . . . . . . . 1 . . . . Time 42 | . . . . . . . . . . . 42 . . . . Total Part Build Rating 8 | . . . . . . . . . . . 8 . . . . Part Studies Acquired . | . . . . . . . . . . . . . . . . Parts Repaired 1 | . . . . . . . . . . . 1 . . . . Time 38 | . . . . . . . . . . . 38 . . . . Parts Recycled . | . . . . . . . . . . . . . . . . Recycled Matter . | . . . . . . . . . . . . . . . . Retrieved Matter . | . . . . . . . . . . . . . . . . Retrieved Components . | . . . . . . . . . . . . . . . . Parts Scanalyzed 1 | . . . . . . . . . . . 1 . . . . Part Schematics Acquired 1 | . . . . . . . . . . . 1 . . . . Parts Damaged . | . . . . . . . . . . . . . . . . Bothacking | -11 -10 -9 -9 -9 -8 -8 -8 -7 -7 -7 -6 -6 -6 -6 -5 ------------ Run | Yrd Mat Mat Min Exi Min Mat Sto Fac Low Low Fac Low Low Dat Pro Used RIF Installer . | . . . . . . . . . . . . . . . . Robots Hacked . | . . . . . . . . . . . . . . . . Non-combat . | . . . . . . . . . . . . . . . . Combat . | . . . . . . . . . . . . . . . . Robot Hacks Applied . | . . . . . . . . . . . . . . . . Relay Couplers Released . | . . . . . . . . . . . . . . . . Fabnet Peak Effective % . | . . . . . . . . . . . . . . . . Robots Rewired 3 | . . . . . . . . . . . . 2 . . 1 Allies Hacked 2 | . . . . . . . . 2 . . . . . . . Hacks Repelled . | . . . . . . . . . . . . . . . . Allies | -11 -10 -9 -9 -9 -8 -8 -8 -7 -7 -7 -6 -6 -6 -6 -5 -------- Run | Yrd Mat Mat Min Exi Min Mat Sto Fac Low Low Fac Low Low Dat Pro Total Allies 20 | . . . . . . . 10 6 . . . 2 . . 2 Largest Group 10 | . . . . . . . 10 10 . . . 2 . . 1 Highest-Rated Group 173 | . . . . . . . 173 173 . . . 62 . . 96 Highest-Rated Ally 96 | . . . . . . . 29 29 . . . 31 . . 96 Total Orders 4 | . . . . . . . . . . . 2 . . . 2 EXPLORE 4 | . . . . . . . . . . . 2 . . . 2 Ally Attacks 145 | . . . . . . . 1 115 . . . 17 . . 12 Total Damage 2242 | . . . . . . . 13 1535 . . . 233 . . 461 Kills 15 | . . . . . . . . 11 . . . 4 . . . Allies Corrupted . | . . . . . . . . . . . . . . . . Allies Melted 1 | . . . . . . . . 1 . . . . . . . Intel | -11 -10 -9 -9 -9 -8 -8 -8 -7 -7 -7 -6 -6 -6 -6 -5 ------- Run | Yrd Mat Mat Min Exi Min Mat Sto Fac Low Low Fac Low Low Dat Pro Active Infowar (turns) 6552 | 7 181 6 204 599 122 28 280 1441 727 131 979 836 546 105 360 Sensors 780 | . . . . . . . . . . . . . 315 105 360 Terrain 1298 | . . . . . . . . . . . 856 442 . . . Seismic 1147 | 7 181 6 204 599 122 28 . . . . . . . . . Machine Analysis 4625 | . . . . . . . 280 1441 727 131 979 836 231 . . Robot Analysis Total . | . . . . . . . . . . . . . . . . Derelict Logs Recovered 5 | . . . 1 . . . . . 2 . . 1 1 . . Drone Launches 9 | . . . . . . . . . . . 2 . . . 7 Drone Recoveries 2 | . . . . . . . . . . . . . . . 2 Exploration | -11 -10 -9 -9 -9 -8 -8 -8 -7 -7 -7 -6 -6 -6 -6 -5 ------------- Run | Yrd Mat Mat Min Exi Min Mat Sto Fac Low Low Fac Low Low Dat Pro Turns Passed 8502 | 69 435 176 204 599 122 477 869 1441 872 229 979 836 659 105 430 Spaces Moved 4258 | 45 272 108 80 282 68 222 387 641 401 87 564 442 355 85 219 Core 2 | 2 . . . . . . . . . . . . . . . Treads 11 | . . . . . . . . . . . . . . . 11 Legs 1831 | . . . . 25 68 222 387 641 401 87 . . . . . Wheels 2414 | 43 272 108 80 257 . . . . . . 564 442 355 85 208 Hover . | . . . . . . . . . . . . . . . . Flight . | . . . . . . . . . . . . . . . . Fastest Speed 50 | 50 80 80 215 170 125 125 170 170 175 262 120 145 120 120 130 Average Speed 159 | 88 88 123 215 211 164 162 170 172 186 262 130 159 152 120 139 Slowest Speed 262 | 100 100 215 215 215 170 170 170 176 262 262 160 160 160 135 240 Overloaded Moves 48 | . . . . . 9 39 . . . . . . . . . Propulsion Burnouts . | . . . . . . . . . . . . . . . . Robots Hopped . | . . . . . . . . . . . . . . . . Potential Cave-ins . | . . . . . . . . . . . . . . . . Cave-ins Triggered . | . . . . . . . . . . . . . . . . Exploration Rate (%) 36 | 3 46 12 18 68 23 27 56 17 53 13 21 57 53 71 47 Regions Visited 15 Branch Regions 10 Pre-discovered Areas 2 | . . . 1 . . . . . . . . . . 1 . Known Exits Taken 1 | . . . . . . . . 1 . . . . . . . Unknown Exits Taken 14 | 1 1 1 1 1 1 1 1 . 1 1 1 1 1 1 . Scrap Searched 8 | . . . . . 1 . . . 2 2 . . 1 . 2 Spaces Dug 3 | . . . . . . . . . . . . . 3 . . Terrain Destroyed 36 | . . . . . 7 6 12 . 1 . . 1 4 . 5 Melee 3 | . . . . . . . . . . . . . 3 . . Projectile 8 | . . . . . . . . . 1 . . 1 1 . 5 AOE 25 | . . . . . 7 6 12 . . . . . . . . Terrain Rammed . | . . . . . . . . . . . . . . . . Walls Destroyed . | . . . . . . . . . . . . . . . . Machines Disabled . | . . . . . . . . . . . . . . . . Actions | -11 -10 -9 -9 -9 -8 -8 -8 -7 -7 -7 -6 -6 -6 -6 -5 --------- Run | Yrd Mat Mat Min Exi Min Mat Sto Fac Low Low Fac Low Low Dat Pro Total 5439 | 61 376 136 105 285 73 281 536 905 479 89 784 519 432 88 290 Wait 627 | . 27 5 20 . . . 72 210 43 . 170 27 49 . 4 Move 4243 | 44 271 107 79 281 67 221 386 640 400 86 563 441 354 84 219 Hop . | . . . . . . . . . . . . . . . . Pick Up 85 | 5 7 7 1 2 1 3 17 10 3 2 13 5 2 1 6 Fast Attach 28 | 7 3 2 . . . 5 2 5 . 1 2 . . . 1 Attach 62 | . 2 2 . . 1 3 4 5 7 . 7 6 6 2 17 Detach 4 | . . 1 . . . . 2 . . . 1 . . . . Swap 22 | . 7 . . 2 . . 2 . . . 5 1 4 . 1 Drop 32 | . 2 2 1 . 1 1 11 2 . . 9 1 . 1 1 Fire 281 | 5 57 9 4 . 3 36 34 33 26 . 14 26 14 . 20 Melee 8 | . . . . . . . . . . . . . 3 . 5 Ram 1 | . . 1 . . . . . . . . . . . . . Kick . | . . . . . . . . . . . . . . . . Crush . | . . . . . . . . . . . . . . . . Escape Stasis 5 | . . . . . . . 5 . . . . . . . . Rewire 41 | . . . . . . 12 1 . . . . 12 . . 16 Trap . | . . . . . . . . . . . . . . . . Miscellaneous . | . . . . . . . . . . . . . . . . Route ------- -11/Scrapyard -10/Materials -9/Materials -9/Mines -9/Exiles (discovered 2 exits: [*Min x2]) -8/Mines -8/Materials -8/Storage -7/Factory (discovered 2 exits: *Low x2) -7/Lower Caves -7/Lower Caves -6/Factory -6/Lower Caves -6/Lower Caves -6/Data Miner -5/Proximity Caves History --------- Turn | Location | Event 9 | -11/Scrapyard | Discovered new exit (range 16) 70 | -11/Scrapyard | Entered Materials 304 | -10/Materials | Lost 3 parts (1p2w) 310 | -10/Materials | Build established: Mutant 400 | -10/Materials | Core integrity fell below 50% 481 | -10/Materials | Discovered new exit (range 14) 505 | -10/Materials | Entered another Materials area 505 | -9/Materials | Evolved 2 slots: Utility x1, Weapon x1 585 | -9/Materials | Discovered new exit (range 15) 681 | -9/Materials | Entered Mines 805 | -9/Mines | Learned location of Storage (-8) 874 | -9/Mines | Deemed a non-threat by the Exiles lab entrance 876 | -9/Mines | Discovered new exit (range 5) 885 | -9/Mines | Entered Exiles 936 | -9/Exiles | Build established: Tank 939 | -9/Exiles | Met 8R-AWN 954 | -9/Exiles | Discovered new exit (range 14) 1042 | -9/Exiles | Met EX-HEX 1107 | -9/Exiles | Met EX-BIN 1137 | -9/Exiles | Aligned with FarCom system 1139 | -9/Exiles | Given EX-Vault access code 1189 | -9/Exiles | Opened EX-Vault 1206 | -9/Exiles | Found Potential Leg 1209 | -9/Exiles | Found Potential Leg 1264 | -9/Exiles | Warned to stay clear of 0b10 Research branches 1341 | -9/Exiles | Met EX-DEC 1463 | -9/Exiles | Discovered new exit (range 14) 1484 | -9/Exiles | Left Exiles lab with Potential Leg 1484 | -9/Exiles | Entered Mines 1598 | -8/Mines | Discovered new exit (range 6) 1606 | -8/Mines | Entered Materials 1606 | -8/Materials | Evolved 2 slots: Utility x2 1675 | -8/Materials | Garrison activated, responded to threat 1794 | -8/Materials | Lost 5 parts (1p2u2w) 1983 | -8/Materials | Discovered new exit (range 7) 2083 | -8/Materials | Entered Storage 2217 | -8/Storage | Build established: Skirmisher 2612 | -8/Storage | Garrison activated, responded to threat 2807 | -8/Storage | Assisted by bots powering up and referring to "LRC-V3" 2856 | -8/Storage | Discovered new exit (range 15) 2952 | -8/Storage | Entered Factory 2952 | -7/Factory | Accompanied by 10 allies 2952 | -7/Factory | Evolved 2 slots: Propulsion x2 3110 | -7/Factory | Build established: Commander-Skirmisher 3363 | -7/Factory | Identified exit to Lower Caves 3415 | -7/Factory | P-60 Hacker assimilated allied Trooper 3c 3424 | -7/Factory | P-60 Hacker assimilated allied Trooper 3i 3863 | -7/Factory | Fabricated B-48 Gladiator (x3) 4010 | -7/Factory | Fabricated B-48 Gladiator (x3) 4042 | -7/Factory | Lost 3 allies 4132 | -7/Factory | Build established: Mutant 4393 | -7/Factory | Entered Lower Caves 4616 | -7/Lower Caves | Learned Factory interactive machine intel 4620 | -7/Lower Caves | Learned location of 1 exit from Research 4625 | -7/Lower Caves | Lost 5 parts (1p2u2w) 4867 | -7/Lower Caves | Build established: Scavenger-Tank 4870 | -7/Lower Caves | Attracted the attention of an 0b10 checkpoint 4923 | -7/Lower Caves | Learned Factory stockpile data 5195 | -7/Lower Caves | Build established: Tank 5247 | -7/Lower Caves | Discovered new exit (range 8) 5265 | -7/Lower Caves | Entered another Lower Caves area 5266 | -7/Lower Caves | Encountered a Warlord checkpoint 5447 | -7/Lower Caves | Discovered new exit (range 15) 5494 | -7/Lower Caves | Entered Factory 5494 | -6/Factory | Evolved 2 slots: Utility x1, Weapon x1 5496 | -6/Factory | Loaded intel: 56 interactive machine locations 5545 | -6/Factory | Repaired Imp. Propulsion Shielding 5766 | -6/Factory | Fabricated Kinecellerator (x2) 5788 | -6/Factory | Build established: Skirmisher 6429 | -6/Factory | Discovered new exit (range 14) 6473 | -6/Factory | Entered Lower Caves 6488 | -6/Lower Caves | P-60 Hacker assimilated allied O6-4RE(S) 6582 | -6/Lower Caves | Encountered a Warlord checkpoint 6693 | -6/Lower Caves | Attacked by a faux Warlord 6721 | -6/Lower Caves | Lost 3 parts (2u1w) 6780 | -6/Lower Caves | Build established: Gunner 6792 | -6/Lower Caves | Learned Factory terminal intel 7259 | -6/Lower Caves | Lost 3 parts (3u) 7284 | -6/Lower Caves | Discovered new exit (range 5) 7309 | -6/Lower Caves | Entered another Lower Caves area 7453 | -6/Lower Caves | Spotted B-75 Beast 7620 | -6/Lower Caves | Lost 6 parts (1p1n1u3w) 7679 | -6/Lower Caves | Attracted the attention of an 0b10 checkpoint 7963 | -6/Lower Caves | Discovered new exit (range 4) 7967 | -6/Lower Caves | Build established: Scavenger-Skirmisher 7968 | -6/Lower Caves | Entered Data Miner 7968 | -6/Data Miner | Discovered new exit (range 6) 7991 | -6/Data Miner | Met Data Miner 8027 | -6/Data Miner | Learned location of Section 7 (-2) 8027 | -6/Data Miner | Acquired the access code to Warlord's prototype stash 8040 | -6/Data Miner | Received God Mode back door access code from Data Miner 8073 | -6/Data Miner | Entered Proximity Caves 8129 | -5/Proximity Caves | Attracted the attention of an 0b10 outpost 8330 | -5/Proximity Caves | Spotted B-75 Beast 8400 | -5/Proximity Caves | Lost 4 parts (1p3w) 8453 | -5/Proximity Caves | Core integrity fell below 50% 8482 | -5/Proximity Caves | Core integrity fell below 20% 8503 | -5/Proximity Caves | Destroyed by G-67 Veteran with Field Laser Last Messages --------------- 08468_ Imp. Heat Sink destroyed. 08469_ Drone Bay destroyed. 08470_ Adv. Treads destroyed. 08472_ M-28 Smith fits Backup Power III on G-50 Soldier. 08472_ Acquired 81 matter. 08472_ Critical hit (Burn: +50). 08474_ M-28 Smith repairs G-50 Soldier Carbon-fiber Leg. 08474_ Drone Bay destroyed. 08474_ >> Lost connection to Drone. 08481_ Imp. Medium Treads destroyed. 08492_ S-27 Virus suffers critical hit (Smash). 08492_ S-27 Virus destroyed. 08497_ Critical hit (Burn: +37). 08498_ Powered Hammer follow-up attack on G-50 Soldier. 08498_ G-50 Soldier knocked back. 08499_ System corrupted: Matter fused (-7). 08502_ Autogun fries itself beyond repair. Map ----- +----------------------------------------------------+ | ###########????????????????????????? | | ???# #???????????????????????? | | #???###!=% ???????????????????????? | | # ### % ???????????????????????? | | # ## ! ### ???????????????????????? | | # ## ""#????? ?????????????????????????? | | #???????????????????????????????????? | | " #???????????????????????????????????? | | ### %"# #??###??????????????????????????????? | | #?# ###""" ####%##?????????????????????????????? | | #?# #???#" %#?????????????????????????????? | | ### #??## % #?????????????????????????????? | | #?##" #?????????????????????????????? | | #?#% ##?????????????????????????????? | | ####### ## #??????????????????????????????? | | ????# #?## %#??????????????????????????????? | | ??# #???## % ##?????????????????????????????? | | ? ?????# ##????????????????????????????? | | # ??????## "#????????????????????????????? | | ? ???????## " ##???????????????????????????? | | ?? ?????????#"; " ##??????????????????????????? | | ?? ??????????#### #??????????????????????????? | | ?????????????????## ##???????????? #?????????? | | ?????????????????# gg ####????? #?????????? | | ?????????????????# g !## #???????????? | | ?????????????????# gg @%! #????????????? | | ?????????????????# s = #????????????? | | ??????????????# #???????????? | | ??????????????# ?????????? | | ??????????????# ## ### ### ?????????? | | ??????????????# ?## #?? ##????## ??????????? | | ?????????????? ???### ##?? ##???????????????????? | | ????????????? ??????###??? #????????????????????? | | ???????????? ????????????###????????????????????? | | ???????????? ????????????????????????????????????? | | ?????????????????????????????????????????????????? | | ?????????????????????????????????????????????????? | | ?????????????????????????????????????????????????? | | ?????????????????????????????????????????????????? | | ?????????????????????????????????????????????????? | | ?????????????????????????????????????????????????? | | ?????????????????????????????????????????????????? | | ?????????????????????????????????????????????????? | | ?????????????????????????????????????????????????? | | ?????????????????????????????????????????????????? | | ?????????????????????????????????????????????????? | | ?????????????????????????????????????????????????? | | ?????????????????????????????????????????????????? | | ?????????????????????????????????????????????????? | | ?????????????????????????????????????????????????? | +----------------------------------------------------+ Best States ------------- Heat Dissipation 70 Energy Generation 19 Energy Capacity 315 Matter Stores 300 Matter Capacity 300 Sight Range 16 Robot Scan Range 16 Terrain Scan Range 20 Terrain Scan Density 10 Armor Coverage 600 Resistance: KI 30 Core Shielding 20 Propulsion Shielding 66 Weapon Cycling 15 Evasion (%) 44 Recoil Reduction 3 Kinecelleration 30 Salvage Targeting 4 Offensive Hacking 10 Authchip Count 3 Item Schematics ----------------- Kinecellerator | -7/Factory | Hacked Arm. Huge Wheel | -6/Factory | Scanalyzed Combat Drone Bay | -6/Data Miner | Free Lgt. Regenerative Plating | -6/Data Miner | Free Enh. Flexi-carbon Leg | -6/Data Miner | Free Imp. Energy Well | -6/Data Miner | Free Hvy. Proton Cannon | -6/Data Miner | Free Adv. Medium Treads | -6/Data Miner | Free Nanoactuators | -6/Data Miner | Free Dispersion Rifle | -6/Data Miner | Free Robot Schematics ------------------ B-48 Gladiator | -7/Factory | Hacked B-60 Warrior | -6/Data Miner | Free S-27 Virus | -6/Data Miner | Free G-50 Soldier | -6/Data Miner | Free G-67 Veteran | -6/Data Miner | Free R-10 Processor | -6/Data Miner | Free L-61 Swordsman | -6/Data Miner | Free Y-64 Sentinel | -6/Data Miner | Free Fabricated ------------ B-48 Gladiator | x3 | -7/Factory | Authchip B-48 Gladiator | x3 | -7/Factory Kinecellerator | x2 | -6/Factory | Authchip Repaired ---------- Imp. Propulsion Shielding | 6% | -6/Factory Studied --------- None Alien Tech Used ----------------- None Achievements -------------- None Challenges ------------ None Game ------ Seed WaveAntisysExtractor Manual? 0 Play Time 01:15:23 Cumulative 108.6 hours Start 2025.12.02 @ 13:00:55 End 2025.12.02 @ 22:00:26 Sessions 7 Manual Loads 0 Difficulty Rogue Special Mode None Game No. 157 Rogue 157 Adventurer 0 Explorer 0 Win Type - Total 1 Types 1/0/0/0/0/0/0/0/0/0 Lore% 59 Gallery% 54 Achievement% 41 Wizard Run 0 Options --------- Layout 2 ASCII 0 Keyboard 0 Movement Mouse Keybinds 0 Fullscreen 1 Font 16/SmallcapsGlow Map View 25x24 Zoom Use 34% Tactical HUD 1 Map Filters NONE Filters NONE Steam SD RUN: 3bc901d8-fe8e-40bb-9713-319a5efa603c